bitfinex-derivatives/quotes_BTCF0:USTF0_20241210
["timestamp","ask_amount","ask_price","bid_price","bid_amount"]
[1733791897176,0.02545547,97950.0,97949.0,0.051027]
[1733791897975,0.006,97950.0,97949.0,0.051027]
[1733791898175,0.006,97950.0,97949.0,0.411827]
[1733791898569,0.008,97950.0,97949.0,0.411827]
[1733791898872,0.008,97950.0,97949.0,1.911827]
[1733791899578,5.4e-07,97955.0,97954.0,0.051025]
[1733791899775,0.3608,97984.0,97954.0,0.411825]
[1733791899976,0.3608,97984.0,97983.0,0.05101]
[1733791900471,0.00153156,97989.0,97988.0,0.051007]
[1733791900872,0.00162343,97989.0,97988.0,0.051007]
[1733791901271,9.187e-05,97989.0,97988.0,0.051007]
[1733791901673,0.02026985,97989.0,97988.0,0.051007]
[1733791901974,9.187e-05,97989.0,97988.0,0.060007]
[1733791903079,0.00109187,97989.0,97988.0,0.051007]
[1733791903275,0.00109187,97989.0,97988.0,0.114607]
[1733791903577,0.00109187,97989.0,97988.0,0.120607]
[1733791903972,0.00109187,97989.0,97988.0,0.481407]
[1733791904178,0.00109187,97989.0,97988.0,0.478407]
[1733791904768,9.187e-05,97989.0,97988.0,0.478407]
[1733791904980,9.187e-05,97989.0,97988.0,0.477407]
[1733791905371,9.187e-05,97989.0,97988.0,0.481407]
[1733791907478,9.187e-05,97989.0,97988.0,0.417807]
[1733791907684,9.187e-05,97989.0,97988.0,0.057007]
[1733791908286,9.187e-05,97989.0,97988.0,0.055007]
[1733791908579,9.187e-05,97989.0,97988.0,0.051007]
[1733791910977,0.00309187,97989.0,97988.0,0.051007]
[1733791911580,9.187e-05,97989.0,97988.0,0.051007]
[1733791912278,9.187e-05,97989.0,97988.0,1.551007]
[1733791913278,9.187e-05,97989.0,97988.0,0.051007]
[1733791913484,9.187e-05,97989.0,97978.0,7.836e-05]
[1733791913485,0.051009,97982.0,97978.0,7.836e-05]
[1733791913675,0.23424476,97988.0,97978.0,7.836e-05]
[1733791914275,0.05101,97982.0,97978.0,7.836e-05]
[1733791915195,0.05101,97980.0,97978.0,7.836e-05]
[1733791916486,0.005,97982.0,97978.0,7.836e-05]
[1733791916686,0.005,97982.0,97980.0,0.05101]
[1733791916893,0.007,97982.0,97980.0,0.05101]
[1733791917784,0.005,97982.0,97979.0,1.50084]
[1733791917984,0.006,97982.0,97979.0,1.5]
[1733791918186,0.005,97980.0,97979.0,1.5]
[1733791918790,0.005,97980.0,97978.0,0.05108936]
[1733791919990,0.004,97980.0,97979.0,0.05101]
[1733791921288,0.005,97980.0,97979.0,0.05101]
[1733791921499,0.002,97980.0,97979.0,0.05101]
[1733791922198,0.001,97980.0,97979.0,0.05101]
[1733791922493,0.001,97980.0,97979.0,0.05401]
[1733791922791,0.001,97980.0,97979.0,0.05101]
[1733791922985,0.15213643,97988.0,97986.0,0.051006]
[1733791923286,9.187e-05,97989.0,97988.0,0.051006]
[1733791923986,9.187e-05,97989.0,97988.0,1.551006]
[1733791925286,0.00309187,97989.0,97988.0,1.551006]
[1733791925784,9.187e-05,97989.0,97988.0,1.551006]
[1733791926789,9.187e-05,97989.0,97988.0,1.55959585]
[1733791927388,9.187e-05,97989.0,97988.0,1.74252206]
[1733791927596,9.187e-05,97989.0,97988.0,0.051006]
[1733791927791,0.05109687,97989.0,97986.0,0.3608]
[1733791927991,0.051006,97988.0,97984.0,0.3608]
[1733791928190,0.051006,97988.0,97969.0,0.02448077]
[1733791928191,0.118707,97987.0,97978.0,0.36087836]
[1733791928688,9.187e-05,97989.0,97986.0,0.3608]
[1733791928893,9.187e-05,97989.0,97988.0,0.051006]
[1733791928894,0.00309187,97989.0,97988.0,0.051006]
[1733791929485,9.187e-05,97989.0,97988.0,0.051006]
[1733791929685,9.187e-05,97989.0,97988.0,1.551006]
[1733791931596,9.187e-05,97989.0,97988.0,1.55951002]
[1733791932090,9.187e-05,97989.0,97988.0,0.30372107]
[1733791932899,9.187e-05,97989.0,97988.0,0.05951002]
[1733791933390,9.187e-05,97989.0,97988.0,0.35951002]
[1733791933997,0.1526319,98003.0,98002.0,0.050999]
[1733791934199,0.02014398,98016.0,98002.0,0.3608]
[1733791934200,0.1526319,98005.0,98002.0,0.3608]
[1733791934390,0.1526319,98005.0,98004.0,0.050998]
[1733791934997,0.15272096,98005.0,98004.0,0.050998]
[1733791935298,8.906e-05,98005.0,98004.0,0.050998]
[1733791935788,0.00508906,98005.0,98004.0,0.051998]
[1733791936799,0.00508906,98005.0,98004.0,1.551998]
[1733791937498,0.00808906,98005.0,98004.0,1.551998]
[1733791939597,0.00808906,98005.0,98004.0,0.001]
[1733791939991,0.05908606,98005.0,98004.0,0.001]
[1733791940203,0.00808906,98005.0,97983.0,0.00849583]
[1733791940502,0.00808906,98005.0,97979.0,1.5]
[1733791940503,0.051004,97992.0,97979.0,1.50084]
[1733791940700,0.15240471,97991.0,97980.0,0.05101]
[1733791940900,0.15240471,97988.0,97979.0,0.00084]
[1733791941100,0.16674476,97990.0,97978.0,7.836e-05]
[1733791941101,0.05101,97981.0,97978.0,7.836e-05]
[1733791941601,0.063,97980.0,97978.0,7.836e-05]
[1733791942098,0.0678,97979.0,97978.0,7.836e-05]
[1733791942716,0.0678,97979.0,97978.0,0.00507836]
[1733791943404,0.1337,97979.0,97978.0,0.00807836]
[1733791944104,0.0679,97979.0,97978.0,0.00507836]
[1733791944403,0.002,97979.0,97978.0,0.36587836]
[1733791944607,0.002,97979.0,97978.0,0.41689036]
[1733791945107,0.007,97979.0,97978.0,0.41189036]
[1733791945404,0.007,97979.0,97978.0,7.836e-05]
[1733791945608,0.002,97979.0,97978.0,0.00207836]
[1733791945808,0.002,97979.0,97978.0,0.36287836]
[1733791946105,0.002,97979.0,97978.0,0.41389036]
[1733791946311,0.004,97979.0,97978.0,1.91189036]
[1733791946494,0.003,97979.0,97978.0,1.91189036]
[1733791946695,0.3608,98004.0,97978.0,1.91189036]
[1733791946894,0.3608,98004.0,97996.0,0.3608]
[1733791947097,8.906e-05,98005.0,98004.0,0.050998]
[1733791947305,8.906e-05,98005.0,98004.0,0.411798]
[1733791947696,8.906e-05,98005.0,98004.0,1.911798]
[1733791948710,8.906e-05,98005.0,98004.0,0.411798]
[1733791949214,0.00508906,98005.0,98004.0,1.911798]
[1733791950008,0.00508906,98005.0,98004.0,0.411798]
[1733791950510,0.00808906,98005.0,98004.0,0.411798]
[1733791951704,0.00808906,98005.0,98004.0,0.3608]
[1733791952513,0.051,98001.0,97987.0,0.051007]
[1733791952714,0.3608,97997.0,97987.0,0.051007]
[1733791952907,0.3608,97997.0,97986.0,0.00839733]
[1733791952908,0.051005,97992.0,97986.0,0.00839733]
[1733791953115,0.0665,97991.0,97986.0,0.00839733]
[1733791953607,0.182305,97990.0,97987.0,0.001]
[1733791954016,0.051006,97989.0,97987.0,0.001]
[1733791954409,0.1313,97990.0,97985.0,0.3608]
[1733791954605,0.1313,97990.0,97980.0,0.0015308]
[1733791954606,0.051006,97989.0,97986.0,0.001]
[1733791955219,0.1313,97990.0,97986.0,0.001]
[1733791955513,0.3608,97987.0,97986.0,0.001]
[1733791956013,0.3608,97987.0,97986.0,0.002]
[1733791956219,0.3608,97987.0,97986.0,0.001]
[1733791956609,0.3658,97987.0,97986.0,0.001]
[1733791957012,0.3658,97987.0,97986.0,1.501]
[1733791957216,0.005,97987.0,97986.0,0.001]
[1733791957706,0.005,97987.0,97986.0,1.501]
[1733791958318,0.15740129,97987.0,97986.0,1.501]
[1733791958619,0.15340129,97987.0,97986.0,1.5]
[1733791959015,0.15340129,97987.0,97981.0,0.3608]
[1733791959217,0.15240129,97982.0,97981.0,0.3608]
[1733791959627,0.18589237,97987.0,97981.0,0.3608]
[1733791959916,0.18589237,97987.0,97978.0,7.836e-05]
[1733791959917,0.051011,97979.0,97978.0,7.836e-05]
[1733791960314,0.411811,97979.0,97978.0,7.836e-05]
[1733791960524,0.3608,97979.0,97978.0,7.836e-05]
[1733791960713,0.18289237,97985.0,97978.0,7.836e-05]
[1733791960912,0.36532001,97987.0,97978.0,7.836e-05]
[1733791960913,0.15238669,97986.0,97985.0,0.051008]
[1733791961223,0.00356001,97987.0,97985.0,0.3608]
[1733791961528,0.15238669,97986.0,97978.0,7.836e-05]
[1733791961819,0.003,97987.0,97978.0,7.836e-05]
[1733791961820,0.15238077,97985.0,97978.0,7.836e-05]
[1733791962023,0.15238077,97984.0,97978.0,7.836e-05]
[1733791962414,0.15238077,97982.0,97978.0,7.836e-05]
[1733791962613,0.003,97987.0,97978.0,7.836e-05]
[1733791962614,0.15238077,97981.0,97978.0,7.836e-05]
[1733791962811,0.18289237,97986.0,97978.0,0.00407836]
[1733791962812,0.15238077,97980.0,97978.0,0.00407836]
[1733791963115,0.411809,97984.0,97978.0,0.00407836]
[1733791963322,0.3608,97984.0,97978.0,7.836e-05]
[1733791963517,0.3618,97984.0,97978.0,7.836e-05]
[1733791964026,0.051011,97980.0,97978.0,7.836e-05]
[1733791964323,0.1362,97979.0,97978.0,7.836e-05]
[1733791964921,0.14458962,97979.0,97978.0,7.836e-05]
[1733791965721,0.15258962,97979.0,97978.0,0.00107836]
[1733791965922,0.051018,97967.0,97960.0,0.00153113]
[1733791966232,0.051018,97967.0,97961.0,1.5]
[1733791966533,0.1442,97979.0,97961.0,1.5]
[1733791966821,0.1442,97979.0,97969.0,0.051016]
[1733791967028,0.008,97979.0,97974.0,0.051014]
[1733791967422,0.008,97979.0,97976.0,0.051013]
[1733791967926,0.008,97979.0,97972.0,0.3608]
[1733791968223,0.001,97979.0,97977.0,0.051012]
[1733791968426,0.001,97979.0,97972.0,0.3608]
[1733791968824,0.004,97979.0,97972.0,0.3608]
[1733791969025,0.003,97979.0,97972.0,0.3608]
[1733791969422,0.051009,97984.0,97972.0,0.3608]
[1733791970225,0.15238162,97982.0,97972.0,0.3608]
[1733791970732,0.001,97979.0,97972.0,0.3608]
[1733791971226,0.003,97979.0,97972.0,0.3608]
[1733791971428,0.15238162,97977.0,97972.0,0.3608]
[1733791971629,0.15238162,97976.0,97972.0,0.3608]
[1733791971926,0.053011,97979.0,97969.0,0.051016]
[1733791971927,0.15238162,97974.0,97969.0,0.051016]
[1733791972125,0.15238162,97973.0,97962.0,0.00012596]
[1733791972526,0.15238162,97974.0,97964.0,0.051017]
[1733791973127,0.15538162,97974.0,97964.0,0.051017]
[1733791973431,0.15238162,97971.0,97967.0,0.051016]
[1733791973732,0.15238162,97970.0,97967.0,0.051016]
[1733791974131,0.15238162,97973.0,97967.0,0.051016]
[1733791974529,0.15238162,97971.0,97967.0,0.051016]
[1733791974944,0.15238162,97971.0,97962.0,0.00012596]
[1733791974945,0.001,97974.0,97969.0,0.3608]
[1733791975252,0.18289237,97984.0,97973.0,0.3608]
[1733791975253,0.15238162,97984.0,97973.0,0.3608]
[1733791975448,0.21351074,98003.0,97973.0,0.3608]
[1733791975449,0.15238162,97992.0,97988.0,0.051005]
[1733791975646,0.17320775,97993.0,97989.0,1.5]
[1733791975949,0.02082613,97993.0,97989.0,1.5]
[1733791976442,0.15238162,97995.0,97983.0,0.3608]
[1733791976644,0.15290163,97998.0,97994.0,0.3608]
[1733791976939,0.15238162,98015.0,98004.0,0.050997]
[1733791977147,0.15238162,98017.0,98004.0,0.411797]
[1733791977341,0.15238162,98018.0,98004.0,0.411797]
[1733791977542,0.15238162,98017.0,98004.0,0.411797]
[1733791977742,0.15238162,98018.0,98004.0,0.411797]
[1733791978153,0.050988,98022.0,98004.0,0.411797]
[1733791978553,0.00508906,98005.0,98004.0,0.412797]
[1733791978945,0.00808906,98005.0,98004.0,0.412797]
[1733791979147,0.15238162,98033.0,98012.0,0.050992]
[1733791979339,0.0624,98043.0,98012.0,0.050992]
[1733791979340,0.26826062,98038.0,98012.0,0.411792]
[1733791979539,0.050979,98038.0,98012.0,0.411792]
[1733791979952,0.050979,98038.0,98012.0,1.911792]
[1733791980157,0.15238162,98044.0,98012.0,1.911792]
[1733791980343,0.0619,98045.0,98036.0,0.3608]
[1733791980543,0.15238162,98046.0,98036.0,0.3608]
[1733791980743,0.050974,98047.0,98036.0,0.3608]
[1733791980949,0.02005296,98041.0,98036.0,0.3608]
[1733791981149,7.439e-05,98040.0,98036.0,0.3608]
[1733791981353,7.439e-05,98040.0,98039.0,0.050978]
[1733791985644,7.439e-05,98040.0,98036.0,0.3608]
[1733791986454,7.439e-05,98040.0,98038.0,0.050979]
[1733791988755,0.00407439,98040.0,98038.0,0.051979]
[1733791992157,0.05505239,98040.0,98038.0,0.001]
[1733791993259,0.00407439,98040.0,98016.0,0.3608]
[1733791993652,0.3608,98031.0,98016.0,0.41179]
[1733791993853,0.29514476,98030.0,98016.0,0.3608]
[1733791994064,0.050991,98014.0,98011.0,0.00084]
[1733791994359,0.050991,98014.0,98007.0,0.050994]
[1733791994858,0.3608,98023.0,98004.0,1.86164]
[1733791995063,0.050988,98021.0,98016.0,0.002]
[1733791995252,0.05099,98018.0,98016.0,0.002]
[1733791995459,0.05099,98018.0,98011.0,0.052993]
[1733791996157,0.16674476,98021.0,98004.0,0.3608]
[1733791996461,0.050993,98012.0,98004.0,0.3608]
[1733791996655,0.050993,98012.0,98007.0,0.050995]
[1733791997360,0.050994,98009.0,98004.0,0.3608]
[1733791997562,0.050994,98009.0,98000.0,1.50084]
[1733791997563,0.3608,98013.0,98000.0,1.50084]
[1733791997754,0.3608,98013.0,98001.0,0.04146046]
[1733791997755,0.3608,98003.0,98001.0,0.04146046]
[1733791997954,0.16674476,98010.0,98001.0,0.04146046]
[1733791997955,0.179797,98002.0,98001.0,0.04146046]
[1733791998752,0.179797,98002.0,97999.0,0.0001211]
[1733791999064,0.179797,98002.0,98001.0,0.001]
[1733791999361,0.179797,98002.0,98001.0,0.002]
[1733792001766,0.179797,98002.0,98001.0,0.001]
[1733792001962,0.179797,98002.0,98001.0,0.002]
[1733792002359,0.179797,98002.0,98001.0,0.001]
[1733792002556,0.179797,98002.0,98001.0,0.002]
[1733792003055,0.050998,98000.0,97999.0,0.0001211]
[1733792004064,0.050998,98000.0,97963.0,0.0655]
[1733792004065,0.051012,97975.0,97966.0,0.3608]
[1733792004264,0.0641,97974.0,97967.0,0.02039367]
[1733792004457,0.0641,97974.0,97968.0,0.01274604]
[1733792004458,0.051014,97972.0,97968.0,0.01274604]
[1733792004770,0.1264,97974.0,97966.0,0.3608]
[1733792005062,0.1264,97974.0,97959.0,0.05102]
[1733792005063,0.051019,97962.0,97959.0,0.00010324]
[1733792005452,0.3608,97967.0,97959.0,0.00010324]
[1733792005656,0.051019,97960.0,97959.0,0.00010324]
[1733792006063,0.7216,97967.0,97959.0,0.00010324]
[1733792006064,0.36132001,97967.0,97959.0,0.00010324]
[1733792006361,7.718e-05,97971.0,97964.0,0.3608]
[1733792007160,7.718e-05,97971.0,97959.0,0.00010324]
[1733792007161,7.718e-05,97971.0,97965.0,0.051016]
[1733792007566,0.3608,97967.0,97965.0,0.051016]
[1733792007766,0.05109118,97971.0,97965.0,0.051016]
[1733792008562,0.05209118,97971.0,97965.0,0.051016]
[1733792008961,0.05209118,97971.0,97959.0,0.00010324]
[1733792009161,0.16674476,97970.0,97959.0,0.00010324]
[1733792009368,0.16674476,97970.0,97959.0,0.05112324]
[1733792009754,0.051017,97965.0,97959.0,0.00010324]
[1733792009960,0.051019,97962.0,97959.0,0.00010324]
[1733792010160,0.051019,97961.0,97959.0,0.00010324]
[1733792010868,0.02074105,97967.0,97959.0,0.00010324]
[1733792011059,0.02074105,97967.0,97959.0,0.05112224]
[1733792011256,0.02074105,97967.0,97959.0,0.05412224]
[1733792011460,0.051017,97965.0,97959.0,0.00310324]
[1733792011961,0.051017,97964.0,97959.0,0.00210324]
[1733792012270,0.051018,97963.0,97959.0,0.00210324]
[1733792012566,0.051019,97961.0,97959.0,0.00210324]
[1733792012959,0.3608,97960.0,97959.0,0.00210324]
[1733792013963,0.3608,97960.0,97946.0,0.36233121]
[1733792013964,0.051026,97947.0,97946.0,0.36233121]
[1733792014564,0.051026,97947.0,97946.0,0.00153121]
[1733792015475,0.053026,97947.0,97946.0,0.00153121]
[1733792015662,0.053026,97947.0,97925.0,0.00867531]
[1733792015663,0.054026,97947.0,97925.0,0.00867531]
[1733792015869,0.054026,97947.0,97936.0,0.051031]
[1733792016173,0.051028,97944.0,97936.0,0.051031]
[1733792016487,0.16685279,97946.0,97927.0,1.614336]
[1733792016669,0.051033,97934.0,97927.0,1.614336]
[1733792016971,0.051035,97931.0,97927.0,1.5633]
[1733792017172,0.051035,97931.0,97927.0,1.503]
[1733792017473,0.051036,97929.0,97927.0,0.003]
[1733792018062,0.00011392,97930.0,97925.0,7.503e-05]
[1733792018063,0.051037,97926.0,97925.0,7.503e-05]
[1733792019067,0.00011392,97930.0,97928.0,0.051036]
[1733792019976,0.02056253,97929.0,97928.0,0.051036]
[1733792020664,0.02056253,97929.0,97928.0,1.551036]
[1733792021070,0.00011392,97930.0,97928.0,1.551036]
[1733792021475,0.00011392,97930.0,97929.0,0.0648]
[1733792022972,0.00011392,97930.0,97929.0,0.0658]
[1733792023875,0.00011392,97930.0,97929.0,0.0668]
[1733792024670,0.00882743,97945.0,97930.0,0.051035]
[1733792024879,0.051024,97951.0,97940.0,0.05103]
[1733792025070,0.051025,97950.0,97940.0,0.05103]
[1733792025788,0.29765279,97960.0,97938.0,0.3608]
[1733792025789,0.00012465,97949.0,97938.0,0.3608]
[1733792026083,0.00012465,97949.0,97948.0,0.411825]
[1733792026473,0.02077699,97949.0,97948.0,0.411825]
[1733792026674,0.00012465,97949.0,97948.0,0.411825]
[1733792027777,0.00312465,97949.0,97948.0,0.411825]
[1733792028287,0.00812465,97949.0,97948.0,0.412825]
[1733792028586,0.00512465,97949.0,97948.0,0.413825]
[1733792028886,0.00012465,97949.0,97948.0,0.414825]
[1733792029685,0.00012465,97949.0,97948.0,0.4235608]
[1733792030384,0.00012465,97949.0,97948.0,0.60640779]
[1733792030589,0.00012465,97949.0,97948.0,0.4225608]
[1733792030776,0.4242,97986.0,97966.0,0.051016]
[1733792030777,0.051006,97984.0,97966.0,0.051016]
[1733792030976,0.051006,97984.0,97966.0,0.411816]
[1733792031184,0.16685279,97980.0,97966.0,0.411816]
[1733792031786,0.00166138,97967.0,97966.0,0.411816]
[1733792032591,0.00666138,97967.0,97966.0,0.411816]
[1733792033090,0.00666138,97967.0,97966.0,0.59441406]
[1733792033285,0.00512933,97967.0,97966.0,0.411816]
[1733792034083,0.00512933,97967.0,97966.0,1.09377406]
[1733792034290,0.00812933,97967.0,97966.0,0.43296744]
[1733792034885,0.00812933,97967.0,97966.0,0.43896744]
[1733792034886,0.00312933,97967.0,97966.0,0.43896744]
[1733792035083,0.00012933,97967.0,97966.0,0.44196744]
[1733792035287,0.00012933,97967.0,97966.0,0.62476423]
[1733792035493,0.00012933,97967.0,97966.0,0.61876423]
[1733792035693,0.00012933,97967.0,97966.0,0.62476423]
[1733792035893,0.00012933,97967.0,97966.0,2.12476423]
[1733792036097,0.00012933,97967.0,97966.0,2.11876423]
[1733792036396,0.00012933,97967.0,97966.0,2.11244342]
[1733792037095,0.00012933,97967.0,97966.0,0.61244342]
[1733792037400,0.00012933,97967.0,97966.0,0.42964663]
[1733792037785,0.3608,97994.0,97990.0,0.051003]
[1733792037994,0.36136001,97994.0,97990.0,0.051003]
[1733792038388,0.09197946,97994.0,97990.0,0.051003]
[1733792038587,0.00056001,97994.0,97990.0,0.051003]
[1733792038788,8.93e-05,97993.0,97984.0,0.3608]
[1733792039093,8.93e-05,97993.0,97992.0,0.051002]
[1733792039300,0.02013652,97993.0,97992.0,0.051002]
[1733792040094,0.02013652,97993.0,97984.0,0.3608]
[1733792040296,0.051003,97991.0,97984.0,0.3608]
[1733792040501,0.02013652,97993.0,97984.0,0.3608]
[1733792040802,0.02013652,97993.0,97986.0,0.051005]
[1733792041097,0.02113652,97993.0,97986.0,0.051005]
[1733792041290,0.02113652,97993.0,97987.0,0.051004]
[1733792041490,0.02613652,97993.0,97984.0,0.36965708]
[1733792041889,0.02613652,97993.0,97992.0,0.411802]
[1733792042494,0.02413652,97993.0,97992.0,0.411802]
[1733792042795,0.02413652,97993.0,97992.0,0.3608]
[1733792042992,0.051005,97986.0,97984.0,0.3608]
[1733792043505,0.11555597,97993.0,97984.0,0.3608]
[1733792043701,0.02413652,97993.0,97984.0,0.3608]
[1733792044289,0.051006,97986.0,97984.0,0.3608]
[1733792044693,0.0646,97985.0,97984.0,0.3608]
[1733792045402,0.1218926,97988.0,97986.0,0.051005]
[1733792045702,0.1218926,97987.0,97984.0,0.3608]
[1733792045901,0.002,97985.0,97984.0,0.3608]
[1733792046101,0.051008,97981.0,97973.0,0.051012]
[1733792046399,0.051008,97981.0,97971.0,0.3608]
[1733792046400,0.14221984,97981.0,97971.0,0.3608]
[1733792046591,0.09121184,97981.0,97971.0,0.3608]
[1733792046796,0.1248926,97988.0,97971.0,0.3608]
[1733792046797,0.09121184,97980.0,97979.0,0.051008]
[1733792047101,0.051007,97984.0,97979.0,0.051008]
[1733792047102,0.09121184,97981.0,97979.0,0.051008]
[1733792047405,0.003,97985.0,97983.0,0.051007]
[1733792047590,0.003,97985.0,97984.0,0.3608]
[1733792048105,0.003,97985.0,97984.0,1.8608]
[1733792048791,8.93e-05,97993.0,97984.0,1.8608]
[1733792048993,8.93e-05,97993.0,97992.0,0.3608]
[1733792049603,8.93e-05,97993.0,97992.0,0.411802]
[1733792050113,0.0020893,97993.0,97992.0,0.411802]
[1733792051397,0.0030893,97993.0,97992.0,0.411802]
[1733792051911,0.0060893,97993.0,97992.0,0.411802]
[1733792052600,0.0050893,97993.0,97992.0,0.411802]
[1733792052795,0.0070893,97993.0,97992.0,0.3608]
[1733792053003,0.0580913,97993.0,97992.0,0.2599]
[1733792053298,0.0580913,97993.0,97960.0,0.11113377]
[1733792053299,0.051006,97985.0,97972.0,0.051013]
[1733792053497,0.23959148,97993.0,97966.0,0.3608]
[1733792053498,0.0625,97984.0,97974.0,0.3608]
[1733792053801,0.3608,97982.0,97968.0,0.051015]
[1733792054004,0.051009,97979.0,97968.0,0.051015]
[1733792054197,0.09134495,97977.0,97968.0,0.051015]
[1733792054502,0.09134495,97975.0,97972.0,0.002]
[1733792054698,0.09134495,97974.0,97972.0,0.002]
[1733792055005,0.3608,97973.0,97972.0,0.002]
[1733792055206,0.12179327,97977.0,97972.0,0.005]
[1733792055394,0.09144562,97974.0,97973.0,0.051012]
[1733792055897,0.36132001,97982.0,97977.0,0.05101]
[1733792055898,0.09144562,97978.0,97977.0,0.05101]
[1733792056103,0.09144562,97980.0,97974.0,0.3608]
[1733792056406,0.18429327,97984.0,97979.0,0.051009]
[1733792056407,0.09144562,97982.0,97979.0,0.051009]
[1733792056811,0.09144562,97982.0,97974.0,0.3608]
[1733792056812,0.09144562,97982.0,97980.0,0.051008]
[1733792057308,0.09144562,97985.0,97983.0,0.051007]
[1733792057503,0.0624,98000.0,97989.0,0.051004]
[1733792057504,0.09144562,97990.0,97989.0,0.051004]
[1733792057695,0.00899559,97996.0,97990.0,0.051003]
[1733792057900,0.00899559,97996.0,97992.0,0.3608]
[1733792058808,0.0040893,97993.0,97992.0,0.3608]
[1733792059012,0.0060893,97993.0,97992.0,0.3608]
[1733792059205,0.02622313,97993.0,97992.0,0.3608]
[1733792059405,0.02222313,97993.0,97992.0,0.3608]
[1733792059601,0.02722313,97993.0,97984.0,0.3608]
[1733792059812,0.02722313,97993.0,97991.0,0.051003]
[1733792060608,0.02522313,97993.0,97991.0,0.051003]
[1733792060912,0.0070893,97993.0,97991.0,0.051003]
[1733792061312,0.0070893,97993.0,97992.0,0.3608]
[1733792061705,0.09866669,97993.0,97992.0,0.3608]
[1733792062102,0.0070893,97993.0,97992.0,0.3608]
[1733792062705,0.0070893,97993.0,97992.0,0.37340826]
[1733792063317,0.0070893,97993.0,97992.0,0.3608]
[1733792063810,0.1291938,97993.0,97992.0,0.3608]
[1733792064407,0.1291938,97993.0,97981.0,0.18301153]
[1733792064408,0.3678893,97993.0,97983.0,0.3608]
[1733792064607,0.3678893,97993.0,97984.0,0.00318978]
[1733792064608,0.051005,97987.0,97984.0,0.00318978]
[1733792064916,0.0631,97986.0,97983.0,0.3608]
[1733792066115,0.0631,97986.0,97983.0,0.411806]
[1733792067714,0.0641,97986.0,97983.0,0.411806]
[1733792068111,0.0651,97986.0,97983.0,0.411806]
[1733792068710,0.15043943,97985.0,97983.0,0.411806]
[1733792068917,0.0661,97986.0,97983.0,0.411806]
[1733792068918,0.04961367,97984.0,97983.0,0.411806]
[1733792069118,0.04961367,97985.0,97983.0,0.411806]
[1733792069317,0.0661,97986.0,97983.0,0.411806]
[1733792069318,0.04961367,97984.0,97983.0,0.411806]
[1733792069806,0.05161367,97985.0,97983.0,0.411806]
[1733792070013,0.04961367,97984.0,97983.0,0.411806]
[1733792071621,0.05161367,97984.0,97983.0,0.411806]
[1733792071812,0.10261967,97984.0,97983.0,0.3608]
[1733792073310,0.10361967,97984.0,97983.0,0.3608]
[1733792074125,0.05261367,97984.0,97983.0,0.3608]
[1733792075412,0.18627887,97984.0,97983.0,0.3608]
[1733792075617,0.05261367,97984.0,97983.0,0.3735592]
[1733792075920,0.05261367,97984.0,97983.0,0.36398981]
[1733792076326,0.05261367,97984.0,97983.0,0.37674913]
[1733792077126,0.23588711,97984.0,97983.0,0.36398981]
[1733792077327,0.23588711,97984.0,97983.0,0.3767491]
[1733792077512,0.23588711,97984.0,97983.0,0.36398981]
[1733792077719,0.23588711,97984.0,97983.0,0.3767491]
[1733792077919,0.23588711,97984.0,97983.0,0.36398981]
[1733792078222,0.23589515,97984.0,97983.0,0.37674902]
[1733792078526,0.23589515,97984.0,97983.0,0.3608]
[1733792078527,0.05261367,97984.0,97983.0,0.3608]
[1733792078922,0.05261367,97984.0,97972.0,0.051015]
[1733792078923,0.51428654,97984.0,97972.0,0.051015]
[1733792079116,0.51428654,97984.0,97965.0,0.00084]
[1733792079117,0.051019,97967.0,97965.0,0.00084]
[1733792079326,0.10971367,97966.0,97958.0,0.00153116]
[1733792079523,0.18333426,97960.0,97959.0,0.01595245]
[1733792079822,0.04961367,97960.0,97959.0,0.01595245]
[1733792080027,0.04961367,97960.0,97959.0,0.00319049]
[1733792080217,0.051022,97959.0,97958.0,0.00153116]
[1733792080416,0.15207972,97959.0,97958.0,0.00153116]
[1733792080619,0.20169339,97959.0,97958.0,0.00153116]
[1733792082028,0.051023,97957.0,97950.0,0.051027]
[1733792082227,0.18317694,97954.0,97950.0,0.051027]
[1733792082433,0.051029,97947.0,97942.0,0.051031]
[1733792082725,0.36132001,97956.0,97942.0,0.051031]
[1733792082726,0.10066015,97946.0,97942.0,0.051031]
[1733792082929,0.23420594,97946.0,97942.0,0.051031]
[1733792083127,0.04963115,97945.0,97942.0,0.051031]
[1733792083331,0.10066115,97945.0,97942.0,0.051031]
[1733792083534,0.04963115,97944.0,97942.0,0.051031]
[1733792083831,0.05103,97945.0,97942.0,0.051031]
[1733792083832,0.09153262,97943.0,97942.0,0.051031]
[1733792084127,0.05103,97945.0,97942.0,0.051031]
[1733792084128,0.05103,97945.0,97942.0,0.055031]
[1733792084321,0.05103,97945.0,97942.0,0.057031]
[1733792085723,0.06020005,97945.0,97942.0,0.057031]
[1733792087732,0.06220005,97945.0,97942.0,0.055031]
[1733792088933,0.06720005,97945.0,97942.0,0.051031]
[1733792089335,0.01617005,97945.0,97943.0,0.05103]
[1733792090239,0.007,97945.0,97943.0,0.05103]
[1733792092037,0.007,97945.0,97944.0,0.3608]
[1733792092331,0.0662,97981.0,97961.0,0.051021]
[1733792092537,0.0662,97981.0,97962.0,0.051021]
[1733792093129,0.12200841,97963.0,97962.0,0.051021]
[1733792093423,0.16215077,97970.0,97962.0,0.051021]
[1733792093835,0.3628,97967.0,97962.0,0.051021]
[1733792094037,0.37188611,97967.0,97958.0,0.0609]
[1733792094229,0.37188611,97967.0,97954.0,0.411824]
[1733792094230,0.051022,97960.0,97954.0,0.3608]
[1733792094622,0.051022,97960.0,97949.0,0.051027]
[1733792094830,0.051022,97960.0,97945.0,0.0643]
[1733792095129,0.02070033,97963.0,97957.0,0.051023]
[1733792095434,0.12200928,97961.0,97957.0,0.051023]
[1733792095636,0.02070033,97963.0,97957.0,0.051023]
[1733792096333,0.12199337,97961.0,97957.0,0.051023]
[1733792096534,0.12199337,97962.0,97957.0,0.051023]
[1733792096737,0.02070033,97963.0,97957.0,0.051023]
[1733792097534,0.12198671,97961.0,97957.0,0.051023]
[1733792097935,0.02070033,97963.0,97957.0,0.051023]
[1733792097936,0.15248339,97960.0,97957.0,0.051023]
[1733792098539,0.15248339,97961.0,97957.0,0.051023]